bitfinex/quotes_ETHUSD_20251120
["timestamp","ask_amount","ask_price","bid_price","bid_amount"]
[1763674188722,0.4969,2869.6,2869.5,0.001]
[1763674189230,0.9601,2869.6,2869.5,0.001]
[1763674189522,1.16501926,2869.6,2869.5,0.001]
[1763674191325,0.70181926,2869.6,2869.5,0.001]
[1763674191515,0.1821,2869.8,2869.5,0.001]
[1763674192523,0.1821,2870.4,2869.7,0.4691]
[1763674192722,0.4632,2870.3,2869.7,0.4691]
[1763674193126,0.1821,2870.4,2869.7,0.4691]
[1763674194434,0.1821,2870.4,2869.7,0.9668]
[1763674195528,0.18220367,2871.1,2869.5,0.001]
[1763674195529,0.002,2869.8,2869.5,0.001]
[1763674195694,0.002,2869.8,2869.6,0.1559]
[1763674196027,0.002,2869.8,2869.7,0.4691]
[1763674197108,0.002,2869.8,2869.7,0.9668]
[1763674199032,0.54901661,2869.8,2869.7,0.4691]
[1763674199828,0.54901661,2869.8,2869.5,0.001]
[1763674200403,0.54901661,2869.8,2869.7,0.4691]
[1763674201244,0.54901661,2869.8,2869.5,0.001]
[1763674201545,0.4969,2869.6,2869.5,0.001]
[1763674201907,0.54901661,2869.8,2869.5,0.4701]
[1763674202106,0.54901661,2869.8,2869.6,0.4691]
[1763674202347,0.4969,2869.7,2869.5,0.001]
[1763674202563,0.1686,2869.6,2869.5,0.001]
[1763674202765,0.54901661,2869.8,2869.5,0.001]
[1763674203047,0.54901661,2869.8,2869.7,0.4691]
[1763674203208,0.54901661,2869.8,2869.5,0.001]
[1763674203415,0.002,2869.8,2869.5,0.001]
[1763674204411,0.4969,2869.6,2869.5,0.001]
[1763674204650,8.55619552,2869.6,2869.5,0.001]
[1763674204951,4.8600835,2869.6,2869.5,0.001]
[1763674205124,3.71864855,2869.6,2869.5,0.001]
[1763674205512,2.76949664,2869.6,2869.5,0.001]
[1763674207319,2.36399264,2869.6,2869.5,0.001]
[1763674209456,0.54723502,2869.7,2869.5,0.463]
[1763674209828,0.54723502,2869.7,2869.6,0.462]
[1763674210023,0.54723502,2869.7,2869.6,0.9616]
[1763674210958,3.502e-05,2869.7,2869.6,1.367104]
[1763674211126,0.002,2870.8,2869.8,0.405504]
[1763674211518,0.002,2870.8,2870.0,0.405504]
[1763674211721,0.002,2870.8,2869.6,0.82916135]
[1763674211722,0.468,2870.8,2869.7,0.905104]
[1763674212124,0.468,2870.8,2869.7,0.4996]
[1763674212365,7.3915095,2870.8,2869.5,0.001]
[1763674212575,1.64614359,2870.7,2869.5,0.001]
[1763674212743,2.11214359,2870.7,2869.5,0.001]
[1763674213060,0.466,2870.6,2869.5,0.001]
[1763674213771,0.002,2869.7,2869.5,0.001]
[1763674214923,0.002,2869.7,2869.6,0.462]
[1763674215357,0.002,2869.7,2869.6,0.9616]
[1763674216153,0.002,2869.7,2869.5,0.001]
[1763674216355,0.1639,2869.6,2869.5,0.001]
[1763674217529,0.002,2869.7,2869.5,0.001]
[1763674217954,0.9526,2869.6,2869.5,0.001]
[1763674220239,0.002,2869.7,2869.5,0.001]
[1763674220240,0.002,2869.7,2869.5,0.463]
[1763674220546,0.002,2869.7,2869.6,0.462]
[1763674220922,0.002,2869.7,2869.6,0.9616]
[1763674221126,0.002,2869.7,2869.6,0.462]
[1763674222965,0.002,2869.7,2869.6,0.9616]
[1763674223776,0.002,2870.0,2869.7,0.405504]
[1763674223984,0.002,2870.0,2869.9,0.462]
[1763674224189,0.002,2870.0,2869.9,0.867504]
[1763674224373,0.002,2870.0,2869.9,1.367104]
[1763674225085,0.002,2870.3,2870.0,0.405504]
[1763674225288,0.002,2870.3,2870.2,0.6179]
[1763674225451,0.002,2870.3,2869.5,0.5006]
[1763674225655,0.54894368,2870.3,2869.6,0.4996]
[1763674225984,0.54894368,2870.3,2870.2,0.6179]
[1763674225985,0.002,2870.3,2870.2,0.6179]
[1763674226487,0.002,2870.3,2870.2,1.1175]
[1763674227458,0.002,2870.3,2870.2,0.6179]
[1763674228967,0.002,2870.3,2870.2,1.1175]
[1763674229776,0.002,2870.3,2870.2,1.523004]
[1763674231174,0.002,2870.3,2870.2,9.35350614]
[1763674231500,0.002,2870.3,2870.2,10.28885675]
[1763674235312,0.002,2870.3,2870.2,3.36534725]
[1763674235464,0.002,2870.3,2870.2,2.42999664]
[1763674235870,0.002,2870.3,2870.2,1.023404]
[1763674236102,0.002,2870.3,2870.2,1.491804]
[1763674237315,0.002,2870.3,2870.2,9.32230614]
[1763674239413,0.002,2870.6,2870.3,0.405504]
[1763674239581,0.1991,2872.6,2870.8,0.405504]
[1763674239779,0.1991,2872.6,2871.4,8.85030614]
[1763674240026,0.1991,2871.9,2870.9,0.4801]
[1763674240202,0.1991,2871.9,2871.0,0.405504]
[1763674240579,0.1991,2871.9,2871.1,0.4801]
[1763674241179,0.4862,2872.0,2871.4,0.4584]
[1763674241380,0.1991,2872.6,2871.4,0.4584]
[1763674241381,0.4862,2872.4,2871.4,0.4584]
[1763674241581,0.1991,2871.9,2871.4,0.4584]
[1763674241781,0.1991,2871.9,2871.0,0.885604]
[1763674242076,0.4862,2872.1,2871.4,0.4584]
[1763674242819,0.4862,2872.5,2871.4,0.9385]
[1763674243115,0.4862,2872.5,2871.4,1.344004]
[1763674243702,0.1991,2872.6,2871.4,1.344004]
[1763674243703,0.4862,2872.4,2871.4,1.344004]
[1763674243883,0.4862,2872.4,2871.4,1.56910366]
[1763674244411,0.1991,2872.6,2871.4,0.63060366]
[1763674244412,0.1991,2871.9,2871.4,0.63060366]
[1763674244602,0.1991,2871.9,2871.4,0.405504]
[1763674244802,0.1991,2872.6,2871.4,0.863904]
[1763674245110,0.4862,2872.3,2871.4,1.344004]
[1763674245679,0.4862,2872.3,2871.4,0.863904]
[1763674245879,0.1991,2871.9,2871.4,0.863904]
[1763674246092,0.1991,2871.9,2871.2,0.405504]
[1763674246320,0.6853,2871.9,2870.8,1.38709264]
[1763674246518,0.6853,2871.9,2870.9,0.84665021]
[1763674246686,0.6853,2871.9,2871.0,0.405504]
[1763674247008,0.6853,2871.9,2871.0,0.885604]
[1763674247009,0.1991,2871.9,2871.0,0.885604]
[1763674248038,0.4882,2871.8,2871.0,0.405504]
[1763674248385,0.54666192,2871.4,2871.0,0.405504]
[1763674248606,0.54666192,2871.4,2870.7,0.636]
[1763674248835,1.03286192,2871.4,2870.7,0.1559]
[1763674249520,1.03286192,2871.4,2870.2,0.1559]
[1763674249521,0.6232,2870.8,2870.2,0.1559]
[1763674251117,0.4862,2870.7,2870.0,0.001]
[1763674251793,0.4732,2870.1,2870.0,0.001]
[1763674252202,0.9594,2870.1,2870.0,0.001]
[1763674254202,0.9594,2870.1,2869.7,0.001]
[1763674254400,0.3818,2869.8,2869.5,0.001]
[1763674254727,0.4679,2869.6,2869.5,0.001]
[1763674254930,0.4679,2869.6,2869.4,0.001]
[1763674255084,0.6718,2869.5,2869.4,0.001]
[1763674255484,0.4732,2869.3,2867.7,0.1559]
[1763674255686,0.1803,2869.1,2867.5,0.1559]
[1763674256087,0.6665,2869.1,2867.5,0.636]
[1763674257487,0.6665,2869.1,2867.5,0.1559]
[1763674257685,0.6665,2869.1,2868.1,0.1937]
[1763674257888,0.6665,2869.1,2868.1,0.6738]
[1763674258107,0.1803,2869.1,2868.3,0.4801]
[1763674258315,0.6665,2869.1,2868.1,0.6738]
[1763674258484,0.6665,2869.1,2868.1,0.1937]
[1763674259416,0.1803,2869.1,2868.3,0.4801]
[1763674259803,0.6665,2869.1,2868.3,0.4801]
[1763674260196,0.6665,2869.1,2868.1,0.1937]
[1763674260994,0.1803,2869.1,2868.3,0.4801]
[1763674261301,0.6362,2870.8,2869.1,0.405504]
[1763674261487,0.15,2870.8,2869.5,0.405504]
[1763674261692,0.4862,2871.2,2869.9,0.405504]
[1763674261923,0.54693185,2870.5,2870.0,0.62685134]
[1763674262128,0.4862,2871.2,2870.0,0.62685134]
[1763674262429,0.54690813,2870.4,2870.1,0.1559]
[1763674262728,0.1991,2870.8,2870.1,0.1559]
[1763674262894,0.54692909,2870.4,2870.2,0.885604]
[1763674263093,0.4882,2871.5,2870.3,0.4801]
[1763674263465,0.54685005,2870.6,2870.3,0.9385]
[1763674263726,0.002,2871.5,2870.4,0.405504]
[1763674263892,0.4882,2871.4,2870.1,0.636]
[1763674264088,0.4882,2871.4,2870.2,0.405504]
[1763674264525,0.4882,2871.4,2870.2,0.885604]
[1763674265026,0.4882,2871.4,2870.2,0.405504]
[1763674265332,0.4882,2871.4,2870.3,0.4801]
[1763674266947,0.002,2871.4,2870.4,0.90699264]
[1763674267094,0.002,2871.4,2870.5,0.4801]
[1763674268042,0.002,2871.4,2870.6,0.405504]
[1763674268460,0.002,2871.4,2870.7,0.467]
[1763674268758,0.002,2871.4,2870.2,0.872504]
[1763674269054,0.002,2871.4,2871.3,0.6345]
[1763674269238,0.002,2871.4,2871.3,1.040004]
[1763674269544,0.002,2871.4,2871.2,0.405504]
[1763674269751,0.002,2871.4,2871.3,0.4786]
[1763674269920,0.002,2871.4,2871.3,0.9456]
[1763674270318,0.002,2871.4,2871.1,0.1559]
[1763674270941,0.002,2871.4,2871.3,0.4786]
[1763674271528,0.002,2871.4,2871.3,0.9456]
[1763674271853,0.002,2871.4,2871.3,0.4786]
[1763674272022,0.002,2871.4,2871.3,0.9456]
[1763674273154,0.002,2871.4,2871.3,0.4786]
[1763674273361,0.002,2871.4,2871.1,0.1559]
[1763674274235,0.54869651,2871.4,2871.1,0.1559]
[1763674274646,0.002,2871.4,2871.1,0.1559]
[1763674274970,0.4848,2871.4,2870.8,0.1559]
[1763674275169,0.4531,2871.2,2870.5,0.1559]
[1763674276372,0.4848,2871.4,2870.5,0.1559]
[1763674276672,0.4848,2871.4,2870.5,0.6229]
[1763674277785,0.002,2871.4,2870.6,0.467]
[1763674277992,0.002,2871.4,2871.3,0.4786]
[1763674278136,0.002,2871.4,2871.3,0.884104]
[1763674278334,0.002,2871.4,2871.3,1.351104]
[1763674278892,0.002,2871.8,2871.7,0.405504]
[1763674279040,0.4828,2873.4,2872.0,1.31249664]
[1763674279239,0.18199747,2874.3,2872.2,0.405504]
[1763674279441,0.6819,2873.2,2872.2,0.405504]
[1763674279641,0.1942,2873.5,2872.4,0.405504]
[1763674279835,0.54669382,2873.8,2873.1,0.1571]
[1763674280337,1.02949382,2873.8,2872.7,0.1571]
[1763674280966,0.4828,2873.7,2872.1,0.1904]
[1763674281168,0.4828,2873.7,2872.2,0.405504]
[1763674282078,0.4828,2873.7,2872.1,0.1904]
[1763674282283,0.405504,2873.6,2871.5,0.467]
[1763674282648,0.4828,2873.5,2871.6,0.405504]
[1763674283179,0.4828,2873.5,2871.7,0.467]
[1763674284306,0.4828,2873.5,2871.8,0.405504]
[1763674284656,0.4828,2873.5,2871.6,0.90699264]
[1763674284657,0.4828,2873.5,2872.0,0.405504]
[1763674285054,0.54650558,2873.2,2872.2,0.405504]
[1763674285253,0.54650558,2873.2,2872.1,0.1904]
[1763674285505,0.4828,2873.1,2872.1,0.1904]
[1763674285652,0.4828,2873.1,2871.8,0.405504]
[1763674286088,0.4828,2873.1,2871.9,0.405504]
[1763674286499,0.4828,2873.1,2871.8,0.467]
[1763674286953,0.4828,2873.1,2871.9,0.405504]
[1763674288505,0.4828,2873.1,2871.9,0.467]
[1763674288861,0.4828,2873.1,2872.0,0.405504]
[1763674289063,0.1942,2874.1,2873.0,0.669]
[1763674289380,0.1942,2874.3,2873.1,0.405504]
[1763674289556,0.1942,2874.3,2873.3,0.405504]
[1763674289976,0.1942,2874.3,2873.5,0.405504]
[1763674290382,0.4647,2874.2,2873.0,0.6577]
[1763674290708,0.6768,2873.1,2872.4,0.1853]
[1763674291303,0.4647,2873.0,2871.6,0.4673]
[1763674291476,0.1649,2872.5,2871.6,0.4673]
[1763674291675,0.1649,2872.5,2871.7,0.405504]
[1763674292085,0.4647,2873.0,2871.7,0.872804]
[1763674292291,0.4647,2873.0,2871.8,0.4673]
[1763674292878,0.4647,2873.0,2871.4,0.4673]
[1763674293109,0.4647,2873.0,2871.5,0.405504]
[1763674293495,0.4647,2873.0,2871.5,0.872804]
[1763674293698,0.4647,2873.0,2871.0,1.06409264]
[1763674293699,0.4647,2873.0,2871.0,0.1571]
[1763674293901,0.405504,2872.9,2871.0,0.1571]
[1763674294205,1.31249664,2872.9,2870.5,0.1559]
[1763674294405,0.405504,2872.7,2870.5,0.1559]
[1763674294912,0.405504,2872.5,2870.5,0.1559]
[1763674295077,0.405504,2872.5,2870.5,0.6232]
[1763674295405,0.4647,2872.4,2870.5,0.6232]
[1763674297009,0.54669711,2872.0,2870.5,0.6232]
[1763674297324,0.54669711,2872.0,2870.6,0.872804]
[1763674297539,0.6549,2871.9,2870.6,0.872804]
[1763674297710,0.6549,2871.9,2870.8,0.405504]
[1763674297912,0.4647,2871.8,2870.6,0.405504]
[1763674299417,0.4647,2871.8,2870.6,0.882104]
[1763674299846,0.4647,2871.8,2870.6,0.405504]
[1763674300146,0.4647,2871.8,2870.7,0.4766]
[1763674300440,0.54669711,2872.0,2870.7,0.4766]
[1763674300441,0.54669711,2872.0,2870.8,0.405504]
[1763674300736,0.4552,2872.6,2871.2,0.405504]
[1763674300931,0.54659002,2871.8,2871.4,0.405504]
[1763674301136,0.4552,2872.6,2871.4,0.405504]
[1763674301725,0.4552,2872.6,2871.4,0.882104]
[1763674302032,0.90699264,2873.9,2871.4,0.882104]
[1763674302220,0.4552,2872.9,2871.4,0.882104]
[1763674302418,0.4552,2872.9,2871.4,0.405504]
[1763674302632,0.4552,2872.9,2871.6,0.405504]
[1763674302803,0.002,2872.6,2871.6,0.405504]
[1763674303130,0.002,2872.6,2871.7,0.4766]
[1763674303432,0.4572,2872.6,2871.7,0.4766]
[1763674303803,0.002,2872.6,2871.8,0.405504]
[1763674304039,0.002,2872.6,2871.9,0.4766]
[1763674304199,0.002,2872.6,2872.0,0.405504]
[1763674304634,0.002,2872.6,2872.1,0.1853]
[1763674305846,0.002,2872.6,2872.5,0.4638]
[1763674306142,0.002,2872.6,2872.5,0.869304]
[1763674306352,0.002,2872.6,2872.5,1.345904]
[1763674308109,0.002,2872.6,2872.1,0.1853]
[1763674308311,0.002,2872.6,2872.5,0.4638]
[1763674308508,0.002,2872.6,2872.5,0.869304]
[1763674308743,0.002,2872.6,2872.5,1.345904]
[1763674309814,0.002,2872.6,2872.5,9.62609911]
[1763674310055,0.002,2872.6,2872.5,10.58870902]
[1763674312774,0.002,2872.9,2872.6,1.31249664]
[1763674313067,0.1889,2874.8,2873.8,1.31249664]
[1763674313237,0.1889,2874.8,2874.0,0.405504]
[1763674313720,0.4552,2875.0,2874.2,0.405504]
[1763674314723,0.002,2875.9,2874.2,0.405504]
[1763674314952,0.54605381,2875.1,2874.2,0.882104]
[1763674315151,0.54605381,2875.1,2874.2,0.405504]
[1763674315428,0.4552,2875.0,2874.2,0.405504]
[1763674316027,0.4552,2875.0,2873.9,0.86454143]
[1763674316333,0.4552,2875.0,2874.1,0.405504]
[1763674316931,0.6441,2875.2,2874.1,0.405504]
[1763674317140,0.1889,2875.4,2874.4,0.405504]
[1763674317327,0.002,2875.6,2874.4,0.405504]
[1763674317527,0.002,2875.6,2874.5,0.4766]
[1763674318361,0.4572,2875.6,2874.5,0.4766]
[1763674318563,0.4572,2875.6,2874.6,0.405504]
[1763674319249,0.002,2875.6,2874.7,0.405504]
[1763674320340,0.4552,2875.5,2874.7,0.405504]
[1763674320535,0.4766,2874.8,2874.2,0.405504]
[1763674320770,0.4552,2875.5,2874.4,0.405504]
[1763674321078,0.4552,2875.5,2874.7,0.4638]
[1763674321284,0.002,2875.0,2874.8,0.405504]
[1763674321490,0.002,2875.0,2874.8,0.882104]
[1763674321688,0.002,2875.0,2874.9,0.869304]
[1763674321894,0.002,2875.0,2874.9,1.345904]
[1763674322468,0.002,2875.3,2875.0,0.405504]
[1763674322713,0.002,2875.3,2875.2,9.31169911]
[1763674322918,0.002,2875.3,2875.2,1.93849664]
[1763674323269,0.002,2875.3,2875.2,1.31249664]
[1763674323775,0.4786,2875.3,2874.8,0.1622]
[1763674324133,0.2015,2875.2,2874.3,0.1622]
[1763674324606,0.6567,2875.2,2874.3,0.1622]
[1763674324969,0.4552,2875.1,2874.3,0.1622]
[1763674325175,0.4552,2875.1,2873.7,0.4766]
[1763674325808,0.002,2875.3,2873.7,0.4766]
[1763674325979,0.002,2875.3,2874.5,1.31249664]
[1763674326169,0.002,2875.3,2874.7,0.405504]
[1763674326372,0.002,2875.3,2874.8,0.405504]
[1763674326677,0.002,2875.3,2875.2,1.031504]
[1763674327076,0.002,2875.3,2875.2,1.508104]
[1763674327410,0.002,2875.6,2875.3,0.405504]
[1763674327611,0.002,2875.6,2875.5,9.14949911]
[1763674327813,0.002,2875.6,2875.5,10.10808054]
[1763674328022,0.002,2875.6,2875.5,10.58468054]
[1763674328531,0.002,2875.6,2875.5,2.73487807]
[1763674328810,0.002,2875.6,2875.5,1.31249664]
[1763674329006,0.002,2875.6,2875.3,0.405504]
[1763674330001,0.002,2875.6,2875.5,0.496]
[1763674330509,0.002,2875.6,2875.5,9.16990948]
[1763674332116,0.002,2875.9,2875.6,1.31249664]
[1763674332305,0.002,2875.9,2875.8,0.901504]
[1763674332679,0.002,2875.9,2875.8,1.378004]
[1763674335052,0.002,2875.9,2875.8,0.901504]
[1763674335253,0.002,2875.9,2875.8,1.378004]
[1763674335413,0.002,2876.4,2876.1,1.072104]
[1763674335617,0.002,2876.4,2876.3,8.69340948]
[1763674335816,0.002,2877.0,2876.4,1.31249664]
[1763674336013,0.002,2877.0,2876.6,0.901504]
[1763674336219,0.1889,2878.1,2877.0,0.405504]
[1763674336458,0.1889,2878.1,2877.5,1.31249664]
[1763674336656,0.462,2878.5,2877.5,1.31249664]
[1763674336657,0.1941,2878.3,2877.8,6.88491284]
[1763674336858,0.1941,2878.3,2877.9,1.31249664]
[1763674337075,0.1941,2878.5,2877.9,1.31249664]
[1763674337216,0.1941,2878.7,2878.3,1.31249664]
[1763674337522,0.462,2878.8,2877.8,0.68849128]
[1763674337724,0.462,2878.7,2877.9,0.405504]
[1763674338517,0.462,2879.1,2878.1,6.88491284]
[1763674338719,0.462,2879.1,2878.2,1.31249664]
[1763674338914,0.462,2879.1,2878.2,1.48309664]
[1763674339158,0.6561,2879.0,2878.2,1.48309664]
[1763674339343,0.6561,2879.0,2878.3,0.83680095]
[1763674339344,0.1941,2879.0,2878.3,0.83680095]
[1763674339715,0.6561,2879.0,2878.4,0.405504]
[1763674339943,0.6561,2879.0,2878.1,6.88491284]
[1763674339944,0.4824,2878.4,2877.5,1.07759264]
[1763674340152,0.1681,2878.3,2877.5,1.07759264]
[1763674340360,0.1941,2879.0,2877.9,0.90699264]
[1763674340361,0.462,2878.8,2877.9,0.90699264]
[1763674340521,0.462,2878.8,2878.0,0.405504]
[1763674341648,0.4824,2878.1,2877.6,0.79625055]
[1763674342248,0.1941,2879.0,2878.0,0.496]
[1763674342249,0.462,2878.8,2878.0,0.496]
[1763674342654,0.1941,2879.0,2878.3,1.31249664]
[1763674342820,0.462,2879.5,2878.7,1.31249664]
[1763674343252,0.6476,2878.8,2878.4,0.81974095]
[1763674343556,0.462,2879.5,2878.5,0.405504]
[1763674343724,0.1941,2878.9,2878.2,0.405504]
[1763674344124,0.1941,2879.1,2878.2,0.405504]
[1763674344343,0.1941,2879.1,2878.2,0.882004]
[1763674344546,0.462,2879.4,2878.5,1.31249664]
[1763674344745,0.462,2879.4,2878.6,0.81974095]
[1763674345054,0.462,2879.7,2878.6,0.81974095]
[1763674345222,0.462,2880.0,2879.0,0.405504]
[1763674346642,0.4824,2879.1,2879.0,0.405504]
[1763674347249,0.462,2879.4,2879.0,0.405504]
[1763674347637,0.462,2879.9,2879.2,0.405504]
[1763674347840,0.1941,2880.1,2879.4,0.405504]
[1763674348073,0.462,2880.0,2879.4,0.405504]
[1763674348255,0.4824,2879.5,2878.6,0.81974095]
[1763674348463,0.1681,2879.4,2878.9,0.405504]
[1763674348649,0.1681,2879.4,2878.7,0.405504]
[1763674348856,0.462,2879.3,2878.7,0.405504]
[1763674349579,0.462,2879.3,2878.2,0.1622]
[1763674349580,0.1941,2878.8,2878.2,0.1622]
[1763674349746,0.462,2879.3,2878.3,0.405504]
[1763674350071,0.1941,2879.2,2878.3,0.405504]
[1763674350272,0.1941,2879.2,2878.5,1.31249664]
[1763674350497,0.4616,2879.9,2878.5,2.13223759]
[1763674350779,0.4616,2879.9,2878.6,0.405504]
[1763674353249,0.4616,2879.9,2878.3,0.405504]
[1763674353662,0.4616,2879.9,2878.4,0.90699264]
[1763674354100,0.4616,2879.9,2878.6,0.405504]
[1763674354301,0.1941,2880.1,2879.5,6.88491284]
[1763674354503,0.1941,2880.1,2879.7,0.405504]
[1763674354804,0.1941,2880.1,2878.7,0.4825]
[1763674354805,0.4616,2880.0,2878.6,0.6015]
[1763674355002,0.464,2879.6,2878.7,0.405504]
[1763674355509,0.4616,2879.8,2879.0,1.31249664]
[1763674355810,0.1941,2880.1,2879.2,0.405504]
[1763674355968,0.5451175,2879.7,2879.2,0.405504]
[1763674356611,0.6557,2880.1,2879.2,0.888004]
[1763674356931,0.1941,2880.1,2879.5,0.405504]
[1763674357769,0.002,2879.9,2879.5,0.405504]
[1763674358509,0.002,2879.9,2879.8,1.76539664]
[1763674358710,0.002,2879.9,2879.8,3.16964759]
[1763674359603,0.002,2879.9,2879.8,2.67944759]
[1763674359901,0.002,2879.9,2879.8,3.16964759]
[1763674360420,0.002,2880.2,2879.8,3.16964759]
[1763674360421,0.002,2880.2,2879.9,0.405504]
[1763674360574,0.002,2880.2,2880.1,8.82090948]
[1763674361014,0.002,2880.2,2880.1,9.31110948]
[1763674361538,0.002,2880.2,2880.1,1.31249664]
[1763674362229,0.002,2880.2,2880.1,0.90699264]
[1763674362540,0.002,2880.2,2880.1,1.31249664]
[1763674363114,0.002,2880.2,2880.1,1.76539664]
[1763674363305,0.002,2880.2,2880.1,1.4890363]
[1763674364431,0.9291,2880.2,2879.4,0.1706]
[1763674364633,0.9291,2880.2,2879.1,7.37511284]
[1763674364947,0.4752,2880.1,2879.1,7.05551284]
[1763674365144,0.4752,2880.1,2879.2,0.405504]
[1763674365437,0.4752,2880.1,2879.3,0.74610168]
[1763674365808,0.4752,2880.1,2879.4,0.405504]
[1763674366346,0.4752,2880.1,2879.5,6.88491284]
[1763674366509,0.002,2880.2,2879.6,1.31249664]
[1763674369446,0.002,2880.2,2880.1,0.858404]
[1763674369648,0.002,2880.2,2880.1,1.72343495]
[1763674369819,0.54696273,2880.2,2880.1,1.72343495]
[1763674371163,0.002,2880.2,2880.1,2.21363495]
[1763674371463,0.002,2880.2,2880.1,2.63042759]
[1763674371613,0.002,2880.2,2880.1,1.77202359]
[1763674371819,0.002,2880.2,2880.1,0.90699264]
[1763674372260,0.9291,2880.2,2879.1,0.6608]
[1763674373450,0.4539,2880.2,2879.1,0.6608]
[1763674373653,0.4752,2880.1,2879.1,0.1706]
[1763674373852,0.4752,2880.1,2879.2,0.405504]
[1763674375250,0.4752,2880.1,2879.4,0.405504]
[1763674375449,0.4752,2880.1,2879.5,0.72904168]
[1763674377433,0.002,2880.2,2879.5,0.72904168]
[1763674378375,0.002,2880.2,2879.8,0.405504]
[1763674378578,0.002,2880.2,2879.8,1.31249664]
[1763674378885,0.002,2880.2,2879.8,1.80269664]
[1763674379183,0.002,2880.2,2880.0,0.405504]
[1763674379848,0.002,2880.2,2880.1,7.74331684]
[1763674380168,0.002,2880.2,2880.1,8.65030948]
[1763674380472,0.002,2880.2,2880.1,9.14050948]
[1763674380633,0.002,2880.2,2880.1,8.65030948]
[1763674380829,0.002,2880.2,2879.0,3.682]
[1763674380830,0.9291,2880.2,2879.2,6.88491284]
[1763674381033,0.002,2880.2,2879.7,0.90699264]
[1763674381234,0.002,2880.2,2880.1,1.76539664]
[1763674381435,0.4752,2881.7,2880.5,0.405504]
[1763674381738,0.54487948,2881.5,2881.0,0.405504]
[1763674382065,0.54487948,2881.5,2880.3,1.31249664]
[1763674382287,0.4752,2881.4,2880.3,1.31249664]
[1763674382634,0.6351,2880.4,2879.4,7.37511284]
[1763674382870,0.4752,2881.4,2879.9,0.90699264]
[1763674383183,0.1832,2880.6,2879.0,0.001]
[1763674383384,0.1832,2880.6,2879.2,6.88491284]
[1763674383534,0.1832,2880.6,2879.7,0.90699264]
[1763674383535,0.4752,2880.5,2879.7,0.90699264]
[1763674383735,0.1832,2880.6,2880.1,0.90699264]
[1763674383934,0.6584,2880.9,2880.1,0.90699264]
[1763674384172,0.1832,2880.9,2880.2,0.405504]
[1763674384343,0.4752,2880.8,2880.2,0.405504]
[1763674384544,0.4519,2880.3,2879.5,0.405504]
[1763674384861,0.2293,2880.2,2879.5,0.405504]
[1763674385170,0.2293,2880.2,2879.8,0.90699264]
[1763674386171,0.2702,2879.9,2879.1,7.05551284]
[1763674386351,0.1832,2880.0,2879.5,6.88491284]
[1763674386547,0.1832,2880.5,2879.6,0.94171968]
[1763674386858,0.1832,2880.5,2879.7,0.405504]
[1763674387038,0.6584,2880.5,2879.7,0.405504]
[1763674387887,0.4752,2880.4,2879.7,0.405504]
[1763674388887,0.4752,2880.4,2879.5,1.31249664]
[1763674389192,0.4752,2880.4,2879.6,0.91183435]
[1763674389361,0.4752,2880.4,2879.0,0.001]
[1763674389567,0.4752,2880.4,2879.3,0.90699264]
[1763674389758,0.4752,2880.4,2879.4,0.405504]
[1763674390367,0.4752,2880.4,2879.4,0.884404]
[1763674390568,0.4752,2880.4,2879.4,0.405504]
[1763674391378,0.4752,2880.4,2879.7,0.405504]
[1763674391553,0.4752,2880.4,2879.5,0.405504]
[1763674392690,0.4752,2880.4,2879.5,0.17913966]
[1763674392876,0.54502818,2880.2,2879.2,0.405504]
[1763674393279,1.04322818,2880.2,2879.2,0.405504]
[1763674393786,0.4982,2880.1,2879.2,0.405504]
[1763674394384,0.4982,2880.1,2879.4,0.001]
[1763674394995,0.49022778,2880.1,2879.4,0.001]
[1763674396194,0.54502818,2880.2,2879.4,0.001]
[1763674396401,0.54502818,2880.2,2879.4,0.406504]
[1763674397074,1.04322818,2880.2,2879.4,0.406504]
[1763674397277,1.04322818,2880.2,2879.4,0.001]
[1763674397475,0.6401,2879.5,2879.4,0.001]
[1763674397690,1.1383,2879.5,2879.4,0.001]
[1763674401108,1.1383,2879.5,2878.6,0.405504]
[1763674401316,0.1914,2879.7,2878.7,0.4789]
[1763674402131,0.4982,2879.9,2879.0,7.32694682]
[1763674402421,0.6896,2879.9,2879.1,1.63968732]
[1763674402716,0.6896,2879.9,2879.1,1.81828732]
[1763674402925,0.1914,2879.9,2879.1,2.29718732]
[1763674403084,0.54507734,2879.8,2879.2,0.405504]
[1763674403284,0.54507734,2879.8,2879.2,0.884404]
[1763674403480,0.54507734,2879.8,2879.3,0.27026913]
[1763674403821,1.04327734,2879.8,2879.3,0.27026913]
[1763674403992,0.4578,2879.4,2878.8,0.405504]
[1763674404179,0.4578,2879.4,2878.6,0.90699264]
[1763674404613,0.956,2879.4,2878.5,7.32794682]
[1763674404816,0.956,2879.4,2878.6,0.405504]
[1763674405019,0.4982,2879.3,2878.5,0.001]
[1763674405408,0.1914,2879.9,2878.5,0.4799]
[1763674405736,0.1914,2879.9,2879.3,0.405504]
[1763674406182,0.1914,2879.9,2879.4,0.1786]
[1763674407907,0.6896,2879.9,2879.2,0.584104]
[1763674409298,0.4982,2879.8,2878.7,0.4789]
[1763674409519,0.4982,2879.8,2878.7,0.405504]
[1763674409690,0.1914,2879.9,2878.9,0.405504]
[1763674409888,0.6896,2879.9,2878.7,0.4789]
[1763674410093,0.6896,2879.9,2878.6,1.49089264]